fUST/lending_fUST_20240518
["ID","MTS","AMOUNT","RATE_DAILY","PERIOD"]
[327321221,1715986238764,-202.51429659,0.00014998,2]
[327321223,1715986238773,-204.82299738,0.00014998,2]
[327321225,1715986238782,-170.59762602,0.00014998,2]
[327321227,1715986238791,-330.55634018,0.00014998,2]
[327321229,1715986238800,-209.52059064,0.00014999,2]
[327321232,1715986238819,-80000.0,0.00015,2]
[327321234,1715986238830,-1148.90229176,0.00015,2]
[327321236,1715986238840,-942.40757179,0.00015,2]
[327321238,1715986238850,-2107.25657902,0.00015,2]
[327321240,1715986238860,-1681.89915885,0.00015,2]
[327321243,1715986238870,-172.45185456,0.0001526,2]
[327321245,1715986238880,-172.45185456,0.00015619,2]
[327321247,1715986238890,-408.6299349,0.00015688,2]
[327321249,1715986238899,-204.3360345,0.00015688,2]
[327321251,1715986238909,-204.3360345,0.00015688,2]
[327321253,1715986238919,-204.3360345,0.00015688,2]
[327321255,1715986238929,-204.3360345,0.00015688,2]
[327321257,1715986238938,-204.3360345,0.00015688,2]
[327321259,1715986238948,-408.5018068,0.00015878,2]
[327321261,1715986238958,-230.7699921,0.00015893,2]
[327321263,1715986238967,-189.55440765,0.00015898,2]
[327321265,1715986238977,-172.45185456,0.00015979,2]
[327321267,1715986238986,-155.08932596,0.00015998,2]
[327321269,1715986238996,-297.25726222,0.00016,2]
[327321272,1715986239006,-7966.29275223,0.00016,2]
[327321274,1715986239016,-8700.0,0.00016,2]
[327321276,1715986239025,-416.98047207,0.00016194,2]
[327321278,1715986239035,-2461.00167912,0.00016332,2]
[327321280,1715986239044,-225.77602293,0.00016333,2]
[327321282,1715986239054,-4665.13457031,0.00016334,2]
[327321284,1715986239065,-1895.4873316,0.00016335,2]
[327321286,1715986239075,-1428.13425117,0.00016335,2]
[327321288,1715986239084,-409.23025382,0.00016335,2]
[327321290,1715986239093,-448.87998394,0.00016335,2]
[327321292,1715986239103,-166.7051548,0.00016335,2]
[327321294,1715986239113,-154.82968734,0.00016335,2]
[327321296,1715986239122,-301.90581559,0.00016335,2]
[327321298,1715986239132,-154.82968734,0.00016335,2]
[327321300,1715986239141,-154.86067302,0.00016335,2]
[327321302,1715986239151,-1199.54048252,0.00016335,2]
[327321304,1715986239165,-163.88159138,0.00016335,2]
[327321306,1715986239176,-294.51792014,0.00016335,2]
[327321308,1715986239186,-154.99717999,0.00016335,2]
[327321310,1715986239197,-236.41159802,0.00016335,2]
[327321312,1715986239206,-260.98401074,0.00016335,2]
[327321314,1715986239216,-187.08694253,0.00016335,2]
[327321316,1715986239225,-2398.82924555,0.00016336,2]
[327321318,1715986239237,-172.45185456,0.00016338,2]
[327321320,1715986239247,-2000.0,0.00016338,2]
[327321322,1715986239256,-63793.78565467,0.00016338,2]
[327321347,1715986239481,-1319.40456863,0.00016338,2]
[327321780,1715986243842,-393.80537543,0.00016295,2]
[327321786,1715986243884,-14.48800348,0.00016295,2]
[327321788,1715986243894,-7.23136661,0.00016338,2]
[327321790,1715986243906,-13365.8483577,0.00016338,2]
[327321792,1715986243915,-2000.0,0.00016338,2]
[327321794,1715986243925,-4221.46001999,0.00016342,2]
[327321796,1715986243935,-150.0,0.00016381,2]
[327321798,1715986243944,-156.10650752,0.00016436,2]
[327321800,1715986243954,-2596.45823948,0.00016436,2]
[327321802,1715986243963,-603.54157098,0.00016437,2]
[327321804,1715986243973,-6988.31162125,0.00016438,3]
[327321806,1715986243983,-14466.94390394,0.00016438,3]
[327321808,1715986243992,-500.0,0.00016438,2]
[327321810,1715986244002,-500.0,0.00016438,2]
[327321812,1715986244011,-500.0,0.00016438,2]
[327321814,1715986244021,-500.0,0.00016438,2]
[327321816,1715986244031,-500.0,0.00016438,2]
[327321818,1715986244040,-500.0,0.00016438,2]
[327321820,1715986244050,-500.0,0.00016438,2]
[327321822,1715986244059,-500.0,0.00016438,2]
[327321824,1715986244069,-447.11207066,0.00016438,2]
[327321826,1715986244078,-539.83,0.00016438,2]
[327321828,1715986244091,-617.48,0.00016438,2]
[327321830,1715986244101,-500.0,0.00016438,2]
[327321832,1715986244111,-500.0,0.00016438,2]
[327321834,1715986244121,-500.0,0.00016438,2]
[327321836,1715986244133,-500.0,0.00016438,2]
[327321838,1715986244143,-500.0,0.00016438,2]
[327321840,1715986244152,-500.0,0.00016438,2]
[327321843,1715986244168,-500.0,0.00016438,2]
[327321845,1715986244178,-500.0,0.00016438,2]
[327321847,1715986244187,-500.0,0.00016438,2]
[327321849,1715986244198,-500.0,0.00016438,2]
[327321850,1715986244208,-500.0,0.00016438,2]
[327321853,1715986244217,-500.0,0.00016438,2]
[327321855,1715986244227,-502.55962726,0.00016438,2]
[327321857,1715986244237,-500.0,0.00016438,2]
[327321859,1715986244247,-500.0,0.00016438,2]
[327321861,1715986244257,-500.0,0.00016438,2]
[327321863,1715986244267,-153.49150854,0.00016438,2]
[327321865,1715986244276,-500.0,0.00016438,2]
[327321867,1715986244286,-500.0,0.00016438,2]
[327321869,1715986244296,-500.0,0.00016438,2]
[327321871,1715986244306,-500.0,0.00016438,2]
[327321873,1715986244315,-500.0,0.00016438,2]
[327321875,1715986244325,-500.0,0.00016438,2]
[327321877,1715986244334,-500.0,0.00016438,2]
[327321879,1715986244343,-500.0,0.00016438,2]
[327321881,1715986244352,-500.0,0.00016438,2]
[327321883,1715986244362,-500.0,0.00016438,2]
[327321885,1715986244371,-500.0,0.00016438,2]
[327321886,1715986244380,-500.0,0.00016438,2]
[327321889,1715986244389,-500.0,0.00016438,2]
[327321890,1715986244398,-500.0,0.00016438,2]
[327321893,1715986244407,-500.0,0.00016438,2]
[327321895,1715986244416,-500.0,0.00016438,2]
[327321897,1715986244425,-500.0,0.00016438,2]
[327321899,1715986244435,-500.0,0.00016438,2]
[327321901,1715986244445,-500.0,0.00016438,2]
[327321903,1715986244455,-500.0,0.00016438,2]
[327321905,1715986244464,-500.0,0.00016438,2]
[327321907,1715986244473,-500.0,0.00016438,2]
[327321909,1715986244482,-500.0,0.00016438,2]
[327321911,1715986244491,-500.0,0.00016438,2]
[327321913,1715986244501,-500.0,0.00016438,2]
[327321915,1715986244510,-500.0,0.00016438,2]
[327321917,1715986244520,-515.91624839,0.00016438,2]
[327321919,1715986244529,-500.0,0.00016438,2]
[327321921,1715986244538,-294.30194895,0.00016438,2]
[327321923,1715986244547,-500.0,0.00016438,2]
[327321925,1715986244556,-528.37195546,0.00016438,2]
[327321927,1715986244566,-544.46,0.00016438,2]
[327321929,1715986244576,-500.0,0.00016438,2]
[327321931,1715986244603,-500.0,0.00016438,2]
[327321933,1715986244620,-500.0,0.00016438,2]
[327321935,1715986244629,-500.0,0.00016438,2]
[327321937,1715986244642,-500.0,0.00016438,2]
[327321939,1715986244662,-500.0,0.00016438,2]
[327321941,1715986244684,-500.0,0.00016438,2]
[327321943,1715986244706,-500.0,0.00016438,2]
[327321945,1715986244720,-500.0,0.00016438,2]
[327321947,1715986244729,-500.0,0.00016438,2]
[327321949,1715986244739,-500.0,0.00016438,2]
[327321951,1715986244748,-500.0,0.00016438,2]
[327321953,1715986244757,-500.0,0.00016438,2]
[327321955,1715986244766,-563.83042221,0.00016438,2]
[327321957,1715986244776,-500.0,0.00016438,2]
[327321959,1715986244786,-500.0,0.00016438,2]
[327321961,1715986244795,-500.0,0.00016438,2]
[327321963,1715986244804,-500.0,0.00016438,2]
[327321965,1715986244813,-500.0,0.00016438,2]
[327321967,1715986244823,-500.0,0.00016438,2]
[327321969,1715986244833,-500.0,0.00016438,2]
[327321971,1715986244842,-500.0,0.00016438,2]
[327321973,1715986244852,-500.0,0.00016438,2]
[327321975,1715986244862,-500.0,0.00016438,2]
[327321977,1715986244872,-500.0,0.00016438,2]
[327321978,1715986244881,-500.91356822,0.00016438,2]
[327321979,1715986244890,-500.0,0.00016438,2]
[327321980,1715986244899,-500.0,0.00016438,2]
[327321981,1715986244909,-500.0,0.00016438,2]
[327321982,1715986244918,-500.0,0.00016438,2]
[327321983,1715986244929,-500.0,0.00016438,2]
[327321984,1715986244938,-501.61020986,0.00016438,2]
[327321985,1715986244947,-500.0,0.00016438,2]
[327321986,1715986244956,-500.0,0.00016438,2]
[327321987,1715986244965,-500.0,0.00016438,2]
[327321988,1715986244974,-500.0,0.00016438,2]
[327321989,1715986244983,-500.0,0.00016438,2]
[327321990,1715986244992,-500.0,0.00016438,4]
[327321991,1715986245001,-500.0,0.00016438,2]
[327321993,1715986245011,-500.0,0.00016438,2]
[327321995,1715986245020,-500.0,0.00016438,2]
[327321997,1715986245030,-500.0,0.00016438,2]
[327321999,1715986245038,-500.0,0.00016438,2]
[327322001,1715986245048,-500.0,0.00016438,2]
[327322003,1715986245058,-500.0,0.00016438,2]
[327322005,1715986245072,-500.0,0.00016438,2]
[327322007,1715986245104,-500.0,0.00016438,2]
[327322009,1715986245115,-500.0,0.00016438,2]
[327322011,1715986245130,-500.0,0.00016438,2]
[327322013,1715986245154,-500.0,0.00016438,2]
[327322015,1715986245174,-500.0,0.00016438,2]
[327322017,1715986245184,-500.0,0.00016438,2]
[327322019,1715986245193,-500.0,0.00016438,2]
[327322021,1715986245203,-500.0,0.00016438,2]
[327322023,1715986245212,-619.94628701,0.00016438,2]
[327322025,1715986245222,-500.0,0.00016438,2]
[327322027,1715986245231,-530.42059546,0.00016438,2]
[327322029,1715986245242,-500.0,0.00016438,2]
[327322031,1715986245251,-500.0,0.00016438,2]
[327322033,1715986245261,-500.0,0.00016438,2]
[327322035,1715986245271,-500.0,0.00016438,2]
[327322037,1715986245280,-500.0,0.00016438,2]
[327322039,1715986245290,-531.34110359,0.00016438,2]
[327322041,1715986245299,-500.66826848,0.00016438,2]
[327322043,1715986245308,-500.0,0.00016438,2]
[327322045,1715986245318,-500.0,0.00016438,2]
[327322047,1715986245327,-500.0,0.00016438,2]
[327322049,1715986245336,-500.0,0.00016438,2]
[327322051,1715986245345,-500.0,0.00016438,2]
[327322053,1715986245354,-500.0,0.00016438,2]
[327322055,1715986245364,-276.76158885,0.00016438,2]
[327322057,1715986245374,-500.0,0.00016438,2]
[327322072,1715986245508,-500.0,0.00016438,2]
[327322074,1715986245518,-500.0,0.00016438,2]
[327322076,1715986245527,-500.0,0.00016438,2]
[327322078,1715986245537,-601.63243183,0.00016438,2]
[327322080,1715986245546,-511.18308324,0.00016438,2]
[327322082,1715986245555,-500.0,0.00016438,2]
[327322084,1715986245564,-500.0,0.00016438,2]
[327322086,1715986245574,-500.0,0.00016438,2]
[327322088,1715986245583,-521.25921931,0.00016438,2]
[327322090,1715986245592,-1000.0,0.00016438,2]
[327322092,1715986245602,-500.0,0.00016438,2]
[327322094,1715986245611,-600.0,0.00016438,2]
[327322096,1715986245620,-505.14416001,0.00016438,2]
[327322098,1715986245629,-500.0,0.00016438,2]
[327322100,1715986245639,-466.43373108,0.00016438,2]
[327322102,1715986245648,-500.0,0.00016438,2]
[327322104,1715986245657,-504.61244209,0.00016438,2]
[327322106,1715986245666,-500.0,0.00016438,2]
[327322108,1715986245675,-500.0,0.00016438,2]
[327322110,1715986245684,-500.0,0.00016438,2]
[327322112,1715986245693,-500.0,0.00016438,2]
[327322114,1715986245702,-504.96722018,0.00016438,2]
[327322116,1715986245711,-500.0,0.00016438,2]
[327322118,1715986245720,-500.0,0.00016438,2]
[327322120,1715986245729,-500.0,0.00016438,2]
[327322122,1715986245739,-500.0,0.00016438,2]
[327322124,1715986245748,-500.0,0.00016438,2]
[327322126,1715986245757,-500.0,0.00016438,2]
[327322128,1715986245766,-501.37931915,0.00016438,2]
[327322130,1715986245775,-500.0,0.00016438,2]
[327322132,1715986245784,-500.0,0.00016438,2]
[327322134,1715986245794,-500.77792071,0.00016438,2]
[327322136,1715986245803,-500.90709511,0.00016438,2]
[327322138,1715986245812,-500.0,0.00016438,2]
[327322140,1715986245821,-315.08786585,0.00016438,2]
[327322142,1715986245830,-504.05135714,0.00016438,2]
[327322144,1715986245839,-500.0,0.00016438,2]
[327322146,1715986245848,-500.0,0.00016438,2]
[327322148,1715986245857,-501.44891104,0.00016438,2]
[327322150,1715986245866,-500.0,0.00016438,2]
[327322152,1715986245876,-500.0,0.00016438,2]
[327322154,1715986245885,-500.0,0.00016438,2]
[327322156,1715986245894,-500.0,0.00016438,2]
[327322158,1715986245903,-501.04937002,0.00016438,2]
[327322160,1715986245912,-156.42120637,0.00016438,2]
[327322162,1715986245921,-601.83666588,0.00016438,2]
[327322164,1715986245930,-500.0,0.00016438,2]
[327322166,1715986245939,-500.0,0.00016438,2]
[327322168,1715986245948,-569.65179403,0.00016438,2]
[327322170,1715986245957,-500.0,0.00016438,2]
[327322172,1715986245966,-500.0,0.00016438,2]
[327322174,1715986245975,-500.0,0.00016438,2]
[327322176,1715986245984,-500.0,0.00016438,2]
[327322178,1715986245993,-500.0,0.00016438,2]
[327322180,1715986246002,-500.0,0.00016438,2]
[327322182,1715986246011,-500.0,0.00016438,2]
[327322184,1715986246020,-500.0,0.00016438,2]
[327322186,1715986246029,-500.0,0.00016438,2]
[327322188,1715986246041,-502.20593887,0.00016438,2]
[327322190,1715986246050,-500.0,0.00016438,2]
[327322192,1715986246059,-500.94154903,0.00016438,2]
[327322194,1715986246069,-500.0,0.00016438,2]
[327322196,1715986246078,-500.0,0.00016438,2]
[327322198,1715986246087,-502.09119767,0.00016438,2]
[327322200,1715986246096,-500.0,0.00016438,2]
[327322202,1715986246105,-500.0,0.00016438,2]
[327322204,1715986246116,-500.0,0.00016438,2]
[327322206,1715986246125,-238.01232678,0.00016438,2]
[327322208,1715986246135,-500.0,0.00016438,2]
[327322210,1715986246144,-500.0,0.00016438,2]
[327322212,1715986246154,-500.0,0.00016438,2]
[327322214,1715986246167,-500.0,0.00016438,2]
[327322216,1715986246176,-500.0,0.00016438,2]
[327322218,1715986246185,-247.51575734,0.00016438,2]
[327322221,1715986246195,-2804.86,0.00016438,2]
[327322222,1715986246205,-500.0,0.00016438,2]
[327322224,1715986246215,-500.0,0.00016438,2]
[327322226,1715986246224,-246.07250585,0.00016438,2]
[327322229,1715986246235,-5101.86,0.00016438,2]
[327322231,1715986246244,-500.0,0.00016438,2]
[327322233,1715986246253,-500.0,0.00016438,2]
[327322235,1715986246262,-500.0,0.00016438,2]
[327322237,1715986246271,-500.0,0.00016438,2]
[327322239,1715986246280,-505.83413611,0.00016438,2]
[327322242,1715986246291,-22395.2,0.00016438,2]
[327322243,1715986246300,-155.58002828,0.00016438,2]
[327322245,1715986246310,-500.0,0.00016438,2]
[327322248,1715986246319,-500.0,0.00016438,2]
[327322250,1715986246329,-500.0,0.00016438,2]
[327322251,1715986246338,-500.0,0.00016438,2]
[327322254,1715986246347,-500.0,0.00016438,2]
[327322256,1715986246356,-500.0,0.00016438,2]
[327322257,1715986246366,-582.49458125,0.00016438,2]
[327322259,1715986246375,-3435.04,0.00016438,2]
[327322261,1715986246384,-500.0,0.00016438,2]
[327322264,1715986246394,-500.0,0.00016438,2]
[327322266,1715986246403,-288.49096864,0.00016438,2]
[327322268,1715986246412,-500.0,0.00016438,2]
[327322270,1715986246421,-500.71646111,0.00016438,2]
[327322272,1715986246431,-6130.66,0.00016438,2]
[327322273,1715986246440,-500.0,0.00016438,2]
[327322276,1715986246450,-500.0,0.00016438,2]
[327322278,1715986246459,-500.0,0.00016438,2]
[327322279,1715986246468,-500.0,0.00016438,2]
[327322281,1715986246477,-500.0,0.00016438,2]
[327322284,1715986246487,-500.0,0.00016438,2]
[327322286,1715986246496,-3705.85,0.00016438,2]
[327322288,1715986246505,-500.0,0.00016438,2]
[327322290,1715986246514,-1240.28,0.00016438,2]
[327322292,1715986246523,-500.0,0.00016438,2]
[327322293,1715986246532,-511.18991099,0.00016438,2]
[327322295,1715986246541,-234.99,0.00016438,2]
[327322297,1715986246551,-500.0,0.00016438,2]
[327322300,1715986246560,-500.0,0.00016438,2]
[327322302,1715986246570,-530.41,0.00016438,2]
[327322304,1715986246579,-500.0,0.00016438,2]
[327322306,1715986246588,-500.0,0.00016438,2]
[327322307,1715986246597,-808.04,0.00016438,2]
[327322308,1715986246607,-500.0,0.00016438,2]
[327322309,1715986246616,-151.0,0.00016438,2]
[327322310,1715986246625,-500.0,0.00016438,2]
[327322311,1715986246635,-500.0,0.00016438,2]
[327322312,1715986246644,-500.0,0.00016438,2]
[327322313,1715986246653,-500.0,0.00016438,2]
[327322314,1715986246662,-601.93,0.00016438,2]
[327322315,1715986246671,-500.0,0.00016438,2]
[327322316,1715986246680,-1106.23,0.00016438,2]
[327322317,1715986246689,-708.36,0.00016438,2]
[327322318,1715986246698,-500.0,0.00016438,2]
[327322319,1715986246707,-500.0,0.00016438,2]
[327322321,1715986246716,-500.0,0.00016438,2]
[327322324,1715986246725,-500.0,0.00016438,2]
[327322325,1715986246735,-5739.85,0.00016438,2]
[327322327,1715986246746,-500.0,0.00016438,2]
[327322328,1715986246755,-648.45,0.00016438,2]
[327322329,1715986246764,-500.0,0.00016438,2]
[327322330,1715986246773,-186.99286724,0.00016438,2]
[327322331,1715986246782,-500.0,0.00016438,2]
[327322332,1715986246791,-526.52,0.00016438,2]
[327322333,1715986246800,-500.0,0.00016438,2]
[327322334,1715986246809,-500.0,0.00016438,2]
[327322335,1715986246818,-500.0,0.00016438,2]
[327322336,1715986246827,-636.18,0.00016438,2]
[327322337,1715986246836,-500.0,0.00016438,2]
[327322338,1715986246845,-500.0,0.00016438,2]
[327322339,1715986246854,-500.0,0.00016438,2]
[327322340,1715986246864,-500.0,0.00016438,2]
[327322341,1715986246873,-274.09997115,0.000165,2]
[327322342,1715986246882,-12703.0,0.000165,2]
[327322344,1715986246891,-408.1612824,0.000165,2]
[327322346,1715986246900,-204.3360345,0.000165,2]
[327322348,1715986246909,-204.3360345,0.000165,2]
[327322349,1715986246918,-564.3,0.0001664,3]
[327322351,1715986246927,-564.3,0.0001664,2]
[327322353,1715986246936,-150.0,0.00016651,2]
[327322355,1715986246945,-150.0,0.00016651,3]
[327322357,1715986246954,-500.0,0.00016712,2]
[327322359,1715986246963,-500.0,0.00016712,2]
[327322360,1715986246972,-500.0,0.00016712,2]
[327322361,1715986246981,-477.32184635,0.00016712,2]
[327322362,1715986246990,-500.0,0.00016712,2]
[327322364,1715986246999,-500.0,0.00016712,2]
[327322366,1715986247008,-500.0,0.00016712,2]
[327322368,1715986247017,-193.50634652,0.00016712,2]
[327322370,1715986247026,-500.0,0.00016712,2]
[327322372,1715986247035,-500.0,0.00016712,2]
[327322373,1715986247044,-500.0,0.00016712,2]
[327322374,1715986247054,-500.0,0.00016712,2]
[327322375,1715986247063,-500.0,0.00016712,2]
[327322376,1715986247072,-500.0,0.00016712,2]
[327322377,1715986247081,-500.0,0.00016712,2]
[327322378,1715986247091,-187.27048126,0.00016712,2]
[327322379,1715986247100,-500.0,0.00016712,2]
[327322380,1715986247108,-500.0,0.00016712,2]
[327322381,1715986247118,-500.0,0.00016712,2]
[327322382,1715986247127,-500.0,0.00016712,2]
[327322384,1715986247137,-500.0,0.00016712,2]
[327322386,1715986247145,-500.0,0.00016712,2]
[327322388,1715986247155,-151.0,0.00016712,2]
[327322390,1715986247167,-563.44,0.00016712,2]
[327322392,1715986247176,-500.0,0.00016712,4]
[327322394,1715986247185,-151.0,0.00016712,2]
[327322395,1715986247194,-151.0,0.00016712,2]
[327322397,1715986247205,-500.0,0.00016712,2]
[327322399,1715986247214,-154.391499,0.00016712,2]
[327322401,1715986247223,-154.391499,0.00016712,2]
[327322403,1715986247232,-500.0,0.00016712,2]
[327322405,1715986247245,-500.0,0.00016712,2]
[327322407,1715986247255,-171.675237,0.00016712,2]
[327322409,1715986247264,-171.675237,0.00016712,2]
[327322411,1715986247273,-151.0,0.00016712,2]
[327322413,1715986247282,-500.0,0.00016712,2]
[327322415,1715986247291,-151.0,0.00016712,2]
[327322417,1715986247300,-151.0,0.00016712,2]
[327322419,1715986247309,-194.044686,0.00016712,2]
[327322421,1715986247321,-316.4,0.00016712,2]
[327322422,1715986247329,-194.044686,0.00016712,2]
[327322423,1715986247339,-151.0,0.00016712,2]
[327322425,1715986247348,-151.0,0.00016712,2]
[327322427,1715986247358,-500.0,0.00016712,2]
[327322429,1715986247368,-151.0,0.00016712,2]
[327322431,1715986247377,-500.0,0.00016712,2]
[327322433,1715986247386,-151.0,0.00016712,2]
[327322435,1715986247395,-151.0,0.00016712,2]
[327322437,1715986247404,-500.0,0.00016712,2]
[327322439,1715986247413,-676.465558,0.00016712,2]
[327322441,1715986247422,-151.0,0.00016712,2]
[327322443,1715986247431,-151.0,0.00016712,2]
[327322445,1715986247440,-676.465558,0.00016712,2]
[327322447,1715986247449,-500.0,0.00016712,2]
[327322449,1715986247459,-256.974774,0.00016712,2]
[327322451,1715986247467,-151.0,0.00016712,2]
[327322453,1715986247476,-256.974774,0.00016712,2]
[327322455,1715986247486,-1718.714398,0.00016712,2]
[327322457,1715986247495,-151.0,0.00016712,2]
[327322459,1715986247503,-2804.86,0.00016712,2]
[327322461,1715986247513,-500.0,0.00016712,2]
[327322463,1715986247522,-151.0,0.00016712,2]
[327322465,1715986247531,-1718.714398,0.00016712,2]
[327322467,1715986247539,-4395.36851531,0.00016712,2]
[327323517,1715987235152,-525.57390868,9.974e-05,2]
[327323518,1715987235173,-230.7699921,9.975e-05,2]
[327323519,1715987235193,-236.48555321,9.975e-05,2]
[327323520,1715987235214,-1660.81222187,9.976e-05,2]
[327323521,1715987240100,-6232.42206703,9.976e-05,2]
[327323522,1715987240122,-2857.61192039,9.977e-05,2]
[327323523,1715987240143,-219.16876929,9.997e-05,2]
[327323524,1715987243107,-18546.89093297,9.997e-05,2]
[327323527,1715987348163,-154.70605849,9.992e-05,2]
[327323528,1715987348185,-284.99869591,9.993e-05,2]
[327323529,1715987348208,-154.70605849,9.994e-05,2]
[327323530,1715987348229,-245.33734162,9.995e-05,2]
[327323531,1715987348249,-1494.22027638,9.995e-05,2]
[327323532,1715987348268,-817.58871518,9.995e-05,2]
[327323533,1715987348287,-1601.21609845,9.996e-05,2]
[327323534,1715987348307,-467.70811704,9.998e-05,2]
[327323535,1715987348326,-9397.51147343,0.0001,2]
[327323536,1715987351236,-209.22231948,0.00011867,2]
[327323537,1715987351258,-204.82299738,0.00011964,2]
[327323538,1715987351419,-202.51429659,0.00011964,2]
[327323539,1715987351440,-330.55634018,0.00011964,2]
[327323540,1715987351459,-154.79876161,0.00011965,2]
[327323541,1715987351479,-59394.25240706,0.00011966,2]
[327323542,1715987351500,-7891.96743066,0.00011967,2]
[327323543,1715987351520,-372.21416803,0.00011967,2]
[327323544,1715987351540,-212.90442467,0.00011967,2]
[327323545,1715987351558,-155.20641764,0.00011967,2]
[327323546,1715987351581,-1165.67821031,0.00011967,2]
[327323547,1715987351602,-155.30132281,0.00011967,2]
[327323548,1715987351623,-316.01546853,0.00011967,2]
[327323549,1715987351644,-158.45914912,0.00011967,2]
[327323550,1715987351666,-405.51452154,0.00011968,2]
[327323551,1715987351687,-24900.0,0.00011969,2]
[327323552,1715987351706,-209.22231944,0.00013,2]
[327323553,1715987353095,-1153.81296184,0.00013889,2]
[327323554,1715987353115,-154.81422293,0.00013983,2]
[327323555,1715987353137,-154.81422293,0.00013986,2]
[327323556,1715987353157,-685.27481241,0.00013986,2]
[327323557,1715987353177,-708.95161168,0.00013992,2]
[327323558,1715987353197,-3390.5117,0.00014,2]
[327323559,1715987353218,-209.22231944,0.00014134,2]
[327323580,1715987372389,209.52059064,0.00014248,2]
[327323585,1715987405258,154.70605849,9.999e-05,2]
[327323629,1715987431968,-158.74778856,0.00014865,2]
[327323631,1715987431977,-155.72233714,0.00014866,2]
[327323633,1715987431987,-162.9575179,0.00014866,2]
[327323635,1715987431996,-294.77473183,0.00014867,2]
[327323637,1715987432006,-155.85306542,0.00014997,2]
[327323639,1715987432015,-346.64832211,0.00014998,2]
[327323641,1715987432027,-3043.86337789,0.00014998,2]
[327323643,1715987432036,-6856.97708988,0.00014999,2]
[327323645,1715987432046,-20474.46774073,0.00014999,2]
[327323647,1715987432056,-1148.90229176,0.00015,2]
[327323649,1715987432065,-2107.25657902,0.00015,2]
[327323651,1715987432075,-2400.26192892,0.00015,2]
[327323654,1715987432085,-942.40757179,0.00015,2]
[327323655,1715987432094,-58587.70050525,0.00015,2]
[327323662,1715987432291,-275.16174657,0.00015,2]
[327324246,1715987438107,-21137.13774818,0.00015,2]
[327324248,1715987438116,-1681.89915885,0.00015,2]
[327324250,1715987438126,-209.22231944,0.00015267,2]
[327324252,1715987438135,-211.6765572,0.00015988,2]
[327324254,1715987438145,-2461.00167912,0.00015992,2]
[327324256,1715987438155,-154.86067302,0.00015992,2]
[327324258,1715987438164,-225.77602293,0.00015992,2]
[327324260,1715987438175,-163.88159138,0.00015992,2]
[327324262,1715987438184,-260.98401074,0.00015992,2]
[327324264,1715987438193,-448.87998394,0.00015992,2]
[327324266,1715987438202,-166.7051548,0.00015992,2]
[327324268,1715987438212,-301.90581559,0.00015992,2]
[327324270,1715987438221,-4665.13457031,0.00015992,2]
[327324272,1715987438231,-187.08694253,0.00015992,2]
[327324274,1715987438240,-1895.4873316,0.00015992,2]
[327324276,1715987438249,-154.82968734,0.00015992,2]
[327324278,1715987438258,-294.51792014,0.00015992,2]
[327324280,1715987438267,-154.99717999,0.00015992,2]
[327324282,1715987438277,-194.39619019,0.00015992,2]
[327324284,1715987438286,-155.08932596,0.00015992,2]
[327324286,1715987438295,-297.25726222,0.00016,2]
[327324288,1715987438304,-7966.29275223,0.00016,2]
[327324290,1715987438314,-204.25000596,0.00016338,2]
[327324292,1715987438323,-1997.2248352,0.00016338,2]
[327324294,1715987438332,-209.22231944,0.000164,2]
[327324296,1715987438342,-227.48163075,0.00016433,2]
[327324298,1715987438351,-155.00453071,0.00016435,2]